fUSD/lending_fUSD_20250410
["ID","MTS","AMOUNT","RATE_DAILY","PERIOD"]
[357673757,1744306243947,-511.566099,0.0002766,2]
[357673759,1744306243957,-500.0,0.0002766,2]
[357673761,1744306243966,-500.0,0.0002766,2]
[357673763,1744306243975,-500.0,0.0002766,2]
[357673765,1744306243984,-500.0,0.0002766,2]
[357673767,1744306243994,-500.0,0.0002766,2]
[357673769,1744306244003,-500.0,0.0002766,2]
[357673771,1744306244012,-601.80285094,0.0002766,2]
[357673773,1744306244022,-378.9955817,0.0002766,2]
[357673776,1744306244034,-121.0044183,0.0002766,2]
[357673777,1744306244044,-500.0,0.0002766,2]
[357673779,1744306244053,-625.56,0.0002766,2]
[357673781,1744306244063,-510.44,0.0002766,2]
[357673783,1744306244071,-500.0,0.0002766,2]
[357673785,1744306244081,-116.1755817,0.0002766,2]
[357673894,1744306245742,-500.0,0.00027397,2]
[357673895,1744306245752,-500.0,0.00027397,2]
[357673896,1744306245762,-500.0,0.00027397,2]
[357673897,1744306245771,-472.5644183,0.0002766,2]
[357673898,1744306245781,-1157.42,0.0002766,2]
[357673899,1744306245791,-643.55636577,0.0002766,2]
[357673900,1744306245800,-504.94591904,0.0002766,2]
[357673901,1744306245811,-516.49113659,0.0002766,2]
[357673902,1744306245820,-500.0,0.0002766,2]
[357673903,1744306245829,-22.05713724,0.0002766,2]
[357673942,1744306246839,-432.87861928,0.00027649,2]
[357673944,1744306246851,-289.31138072,0.00027649,2]
[357673946,1744306246861,-477.94286276,0.0002766,2]
[357673947,1744306246870,-500.0,0.0002766,2]
[357673948,1744306246879,-500.0,0.0002766,2]
[357673949,1744306246887,-500.0,0.0002766,2]
[357673950,1744306246896,-1202.55,0.0002766,2]
[357673951,1744306246905,-671.14609065,0.0002766,2]
[357673952,1744306246928,-103.91390935,0.0002766,2]
[357673953,1744306246937,-2619.08,0.0002766,2]
[357673954,1744306246946,-154.5517035,0.0002766,2]
[357673955,1744306246957,-361.84922183,0.0002766,2]
[357673956,1744306246966,-11.17731041,0.0002766,2]
[357673968,1744307137158,-302.574344,0.00018905,2]
[357673969,1744307137178,-250.0,0.00019,2]
[357673970,1744307137199,-12500.0,0.00019847,2]
[357673971,1744307137218,-12500.0,0.00019856,2]
[357673972,1744307137238,-150.0,0.00019863,2]
[357673973,1744307137258,-8538.1854491,0.00019865,2]
[357673974,1744307140091,-3961.8145509,0.00019865,2]
[357673975,1744307140112,-12500.0,0.00019874,2]
[357673976,1744307140132,-12500.0,0.00019882,2]
[357673977,1744307140152,-12500.0,0.00019891,2]
[357673978,1744307140173,-40180.25242087,0.000199,2]
[357673979,1744307225081,-172.69566769,0.00018732,2]
[357673980,1744307226114,-68.61433231,0.00018732,2]
[357673981,1744307226138,-308.76848752,0.000199,2]
[357673982,1744307233138,-35958.18391153,0.000199,2]
[357673983,1744307233160,-12500.0,0.000199,2]
[357673984,1744307233181,-518.74317875,0.000199,2]
[357673985,1744307233202,-25518.80555244,0.000199,2]
[357673986,1744307233223,-223.7067018,0.000199,2]
[357673987,1744307233243,-566.30307869,0.000199,3]
[357673988,1744307233265,-500.0,0.00019973,2]
[357673989,1744307233287,-168.48518084,0.00019973,2]
[357673990,1744307233307,-259.48888106,0.00019973,2]
[357673991,1744307233328,-500.0,0.00019973,2]
[357673992,1744307233348,-505.39972622,0.00019973,2]
[357673993,1744307233368,-500.0,0.00019973,2]
[357673994,1744307233388,-153.06885563,0.00019973,2]
[357673995,1744307233408,-500.0,0.00019973,2]
[357673996,1744307233428,-279.85356049,0.00019973,2]
[357673997,1744307233449,-182.79333252,0.00019999,2]
[357673998,1744307233473,-99198.4237765,0.0002,2]
[357673999,1744307238257,-200.0,0.00019988,2]
[357674000,1744307238285,-42001.78505555,0.0002,2]
[357674001,1744307239132,-7199.15428653,0.0002,2]
[357674003,1744307247184,-101825.16305924,0.0002,2]
[357674014,1744307351098,-3913.992,0.000199,2]
[357674015,1744307351123,-377.5353858,0.000199,3]
[357674016,1744307351143,-518.74317875,0.000199,2]
[357674017,1744307351165,-24077.328,0.000199,2]
[357674018,1744307351185,-500.0,0.00019973,2]
[357674019,1744307351208,-4618.07901545,0.0002,2]
[357674020,1744307352083,-311.43420062,0.00019999,2]
[357674021,1744307352107,-335.76238887,0.0002,2]
[357674025,1744307369115,-39416.86479658,0.0002,2]
[357674026,1744307372171,-170.16369834,0.000199,2]
[357674027,1744307372194,-4215.88178588,0.0002,2]
[357674031,1744307432384,-278.09935959,0.000199,2]
[357674032,1744307432442,-1154.35535575,0.000199,2]
[357674033,1744307432451,-268.8619,0.000199,2]
[357674034,1744307432461,-170.16369834,0.00019917,2]
[357674035,1744307432470,-170.16369834,0.00019933,2]
[357674036,1744307432479,-500.0,0.00019973,2]
[357674037,1744307432490,-115691.97665728,0.0002,2]
[357674038,1744307432501,-4074.12066048,0.0002,2]
[357674056,1744307438461,-169972.30460046,0.0002,2]
[357674065,1744307438910,-47254.25326159,0.0002,2]
[357674066,1744307438922,-283.97531689,0.0002,2]
[357674067,1744307438980,-106265.63930787,0.0002,2]
[357674068,1744307440429,-17225.9003604,0.0002,2]
[357674071,1744307441291,-14197.65100796,0.0002,2]
[357674072,1744307441322,-83662.38273478,0.0002,2]
[357674073,1744307441341,-1442.2085877,0.0002,2]
[357674074,1744307441369,-2301052.47288169,0.0002,2]
[357674075,1744307441380,-592.14699988,0.0002,2]
[357674076,1744307441391,-5942.95569931,0.0002,2]
[357674094,1744307443514,-1182.99087446,0.0002,2]
[357674095,1744307443526,-2072.98397197,0.0002,2]
[357674096,1744307443598,-61687.34615163,0.0002,2]
[357674098,1744307443673,-120122.02350293,0.0002,2]
[357674109,1744307443841,-926356.91750795,0.0002,2]
[357674112,1744307443872,-4150.0,0.0002,2]
[357674118,1744307446488,-495.13204307,0.0002,2]
[357674119,1744307446500,-2694.61230655,0.0002,2]
[357674120,1744307446513,-654.14648305,0.0002,2]
[357674121,1744307446537,-201857.8460891,0.0002,2]
[357674122,1744307446549,-142246.6,0.0002,2]
[357674123,1744307446675,-14272.1172921,0.0002,2]
[357674124,1744307446689,-551.75341265,0.0002,2]
[357674125,1744307446706,-11007.18684033,0.0002,2]
[357674560,1744308086385,-279.245034,0.0001925,2]
[357674561,1744308086408,-200.0,0.00019347,7]
[357674562,1744308086429,-2533.94628199,0.0001938,2]
[357674563,1744308086450,-185.21344852,0.00019381,2]
[357674564,1744308086470,-1634.57,0.00019398,2]
[357674565,1744308086493,-300.0,0.0001948,2]
[357674566,1744308086514,-10781.85,0.00019481,2]
[357674567,1744308086535,-985.33,0.00019481,2]
[357674568,1744308086557,-185.2134485,0.00019591,2]
[357674569,1744308086579,-1000.0,0.00019693,2]
[357674570,1744308086600,-185.2134485,0.000198,2]
[357674571,1744308086621,-2252.79,0.00019843,2]
[357674572,1744308086644,-3318.029,0.00019843,2]
[357674573,1744308086874,-173.958,0.00019843,2]
[357674574,1744308086912,-39928.285,0.00019899,2]
[357674575,1744308086934,-1371.4725,0.00019899,2]
[357674576,1744308086956,-8751.94486652,0.000199,2]
[357674577,1744308086979,-171.86426737,0.000199,2]
[357674578,1744308086999,-251.6902572,0.000199,3]
[357674579,1744308087020,-506.5513819,0.00019973,2]
[357674580,1744308087040,-363.63512475,0.00019973,2]
[357674581,1744308087061,-500.0,0.00019973,2]
[357674582,1744308087083,-500.0,0.00019973,2]
[357674583,1744308087103,-500.0,0.00019973,2]
[357674584,1744308087125,-500.0,0.00019973,2]
[357674585,1744308087146,-200.0,0.00019988,2]
[357674586,1744308087168,-164.16,0.00019989,2]
[357674587,1744308087189,-164.16,0.0001999,2]
[357674588,1744308087210,-164.16,0.0001999,2]
[357674589,1744308087232,-164.16,0.0001999,2]
[357674590,1744308087253,-190.90911026,0.00019998,2]
[357674591,1744308087275,-300.0,0.00019999,2]
[357674592,1744308087296,-3678.54,0.00019999,2]
[357674593,1744308087316,-3678.54,0.00019999,2]
[357674594,1744308087338,-3678.54,0.00019999,2]
[357674595,1744308087360,-3678.54,0.00019999,2]
[357674596,1744308087381,-3678.54,0.00019999,2]
[357674597,1744308087402,-3678.54,0.00019999,2]
[357674598,1744308087425,-3678.54,0.00019999,2]
[357674599,1744308087450,-3678.54,0.00019999,2]
[357674600,1744308087471,-3678.54,0.00019999,2]
[357674601,1744308087494,-3678.54,0.00019999,2]
[357674602,1744308087522,-3678.54,0.00019999,2]
[357674603,1744308087544,-3678.54,0.00019999,2]
[357674604,1744308087580,-3678.54,0.00019999,2]
[357674605,1744308087605,-109047.82300525,0.00019999,2]
[357674606,1744308087630,-1117.87658047,0.00019999,5]
[357674607,1744308087657,-1727642.23270472,0.0002,2]
[357674608,1744308087683,-4851747.69654005,0.0002,2]
[357674609,1744308136453,-954.96981022,0.000199,2]
[357674610,1744308136475,-250.0,0.0001995,2]
[357674611,1744308136496,-500.0,0.00019973,2]
[357674612,1744308136517,-200.0,0.00019988,2]
[357674613,1744308136541,-99165.03018978,0.0002,2]
[357674614,1744308183486,-863.118621,0.000199,2]
[357674615,1744308183515,-300.0,0.00019999,2]
[357674616,1744308183534,-863.118621,0.0002,2]
[357674617,1744308183563,-222.46419201,0.000199,3]
[357674618,1744308183573,-77.53580799,0.0002,2]
[357674619,1744308183585,-1557438.762758,0.0002,2]
[357674622,1744308429146,-214.26,0.00016961,2]
[357674623,1744308429167,-1160.642393,0.000198,2]
[357674624,1744308429186,-168.73739605,0.000199,2]
[357674625,1744308429429,-164.88387398,0.000199,2]
[357674626,1744308429482,-1033.48880141,0.00019973,2]
[357674627,1744308432878,-1120.0,0.00019999,5]
[357674628,1744308440416,-2636.06173077,0.000199,2]
[357674630,1744308485399,-500.0,0.000196,7]
[357674631,1744308485427,-500.0,0.000197,7]
[357674633,1744308513317,-150.0,0.000197,7]
[357674636,1744308555092,-350.0,0.000197,7]
[357674637,1744308555114,-330.1139828,0.000198,7]
[357674640,1744308564091,-1169.8860172,0.000198,7]
[357674641,1744308564112,-200.0,0.00019857,2]
[357674642,1744308564132,-2000.0,0.00019857,2]
[357674643,1744308564153,-579.93391877,0.00019873,2]
[357674644,1744308564172,-25943.5821195,0.000199,2]
[357674645,1744308569572,-850.77449671,0.000199,2]
[357674646,1744308575405,-501.0,0.000199,7]
[357674647,1744308579426,-501.0,0.000199,7]
[357674648,1744308580694,-501.0,0.000199,7]
[357674649,1744308581563,-497.0,0.000199,7]
[357674653,1744308631408,-9390.91547905,0.000199,2]
[357674654,1744308631518,-15789.69823137,0.000199,2]
[357674655,1744308631574,-43759.81540641,0.000199,2]
[357674728,1744308633568,-38014.0,0.000199,2]
[357674741,1744308637605,-2128.30563116,0.00018,2]
[357674742,1744308637615,-21716.49436883,0.000199,2]
[357674743,1744308637661,-7342.57998496,0.000199,2]
[357674744,1744308637672,-11157.38489646,0.000199,2]
[357674745,1744308637805,-56474.91668594,0.000199,2]
[357674746,1744308637814,-244.36913924,0.000199,2]
[357674747,1744308637824,-47211.0,0.000199,2]
[357674748,1744308637833,-176.76762969,0.000199,2]
[357674749,1744308637843,-500.0,0.00019973,2]
[357674750,1744308637852,-500.0,0.00019973,2]
[357674751,1744308637862,-500.0,0.00019973,2]
[357674752,1744308637873,-555.97714095,0.00019973,2]
[357674753,1744308637882,-500.0,0.00019973,2]
[357674754,1744308637892,-200.0,0.00019988,2]
[357674756,1744308637901,-436.2434021,0.0001999,2]
[357674758,1744308637911,-255.1482999,0.0001999,2]
[357674760,1744308637921,-0.02401484,0.00019999,5]
[357674780,1744308638117,-7614.29,0.00019999,2]
[357674783,1744308638140,-35412.69233555,0.0002,2]
[357674787,1744308638165,-1192.08,0.0002,2]
[357674789,1744308638176,-507935.15670972,0.0002,2]
[357674970,1744308639700,-445.06827262,0.0002,2]
[357674973,1744308639711,-1935076.61748433,0.0002,2]
[357674976,1744308639722,-250.0,0.0002,2]
[357674979,1744308639731,-250.0,0.0002,2]
[357674982,1744308639740,-250.0,0.0002,2]
[357674985,1744308639750,-250.0,0.0002,2]
[357674988,1744308639760,-250.0,0.0002,2]
[357674991,1744308639769,-250.0,0.0002,2]
[357674994,1744308639778,-250.0,0.0002,2]
[357674996,1744308639788,-250.0,0.0002,2]
[357674999,1744308639797,-250.0,0.0002,2]
[357675002,1744308639806,-250.0,0.0002,2]
[357675004,1744308639816,-250.0,0.0002,2]
[357675007,1744308639825,-250.0,0.0002,2]
[357675010,1744308639835,-250.0,0.0002,2]
[357675013,1744308639844,-250.0,0.0002,2]
[357675016,1744308639854,-358.9,0.0002,2]
[357675019,1744308639864,-500.0,0.0002,2]
[357675022,1744308639875,-643.13288365,0.0002,2]
[357675025,1744308639884,-610.0,0.0002,2]
[357675028,1744308639894,-610.0,0.0002,2]
[357675031,1744308639904,-610.0,0.0002,2]
[357675034,1744308639913,-610.0,0.0002,2]
[357675037,1744308639922,-610.0,0.0002,2]
[357675040,1744308639931,-610.0,0.0002,2]
[357675043,1744308639941,-610.0,0.0002,2]
[357675046,1744308639950,-610.0,0.0002,2]
[357675049,1744308639959,-610.0,0.0002,2]
[357675052,1744308639969,-610.0,0.0002,2]
[357675055,1744308639979,-610.0,0.0002,2]
[357675058,1744308639995,-610.0,0.0002,2]
[357675061,1744308640004,-610.0,0.0002,2]
[357675064,1744308640014,-610.0,0.0002,2]
[357675067,1744308640023,-610.0,0.0002,2]
[357675070,1744308640034,-610.0,0.0002,2]
[357675073,1744308640046,-610.0,0.0002,2]
[357675076,1744308640055,-610.0,0.0002,2]
[357675079,1744308640066,-610.0,0.0002,2]
[357675082,1744308640076,-621.0,0.0002,2]
[357675085,1744308640085,-150.0,0.0002,2]
[357675088,1744308640095,-150.0,0.0002,2]
[357675091,1744308640104,-150.0,0.0002,2]
[357675094,1744308640114,-150.0,0.0002,2]
[357675097,1744308640123,-249.67176619,0.0002,2]
[357675100,1744308640134,-500.0,0.0002,2]
[357675103,1744308640143,-500.0,0.0002,2]
[357675105,1744308640154,-500.0,0.0002,2]
[357675108,1744308640163,-500.0,0.0002,2]
[357675111,1744308640173,-500.0,0.0002,2]
[357675114,1744308640182,-500.0,0.0002,2]
[357675117,1744308640192,-500.0,0.0002,2]
[357675120,1744308640202,-507.49509777,0.0002,2]
[357675123,1744308640212,-500.0,0.0002,2]
[357675126,1744308640226,-500.0,0.0002,2]
[357675129,1744308640236,-500.0,0.0002,2]
[357675132,1744308640245,-500.0,0.0002,2]
[357675135,1744308640255,-500.0,0.0002,2]
[357675138,1744308640265,-847.13627097,0.0002,2]
[357675141,1744308640275,-500.0,0.0002,2]
[357675144,1744308640285,-500.0,0.0002,2]
[357675147,1744308640296,-500.0,0.0002,2]
[357675150,1744308640306,-500.0,0.0002,2]
[357675153,1744308640316,-500.0,0.0002,2]
[357675156,1744308640326,-500.0,0.0002,2]
[357675160,1744308640335,-732.69088834,0.0002,2]
[357675163,1744308640346,-500.0,0.0002,2]
[357675165,1744308640355,-500.0,0.0002,2]
[357675168,1744308640365,-500.0,0.0002,2]
[357675171,1744308640374,-500.0,0.0002,2]
[357675174,1744308640384,-500.0,0.0002,2]
[357675177,1744308640394,-787.8691876,0.0002,2]
[357675180,1744308640403,-299.52754367,0.0002,2]
[357675182,1744308640412,-150.0,0.0002,2]
[357675184,1744308640422,-150.0,0.0002,2]
[357675186,1744308640431,-197.39427483,0.0002,2]
[357675189,1744308640440,-150.0,0.0002,2]
[357675192,1744308640450,-150.0,0.0002,2]
[357675195,1744308640461,-193.1233517,0.0002,2]
[357675198,1744308640473,-500.0,0.0002,2]
[357675201,1744308640482,-500.0,0.0002,2]
[357675204,1744308640491,-500.0,0.0002,2]
[357675207,1744308640501,-500.0,0.0002,2]
[357675209,1744308640510,-500.0,0.0002,2]
[357675212,1744308640519,-500.0,0.0002,2]
[357675215,1744308640528,-518.39727899,0.0002,2]
[357675218,1744308640538,-500.0,0.0002,2]
[357675221,1744308640547,-500.0,0.0002,2]
[357675224,1744308640556,-998.2345543,0.0002,2]
[357675227,1744308640566,-163.75461049,0.0002,2]
[357675230,1744308640575,-150.0,0.0002,2]
[357675233,1744308640585,-150.0,0.0002,2]
[357675236,1744308640594,-200.0,0.0002,2]
[357675239,1744308640604,-162.19427415,0.0002,2]
[357675242,1744308640612,-4849.0,0.0002,2]
[357675245,1744308640621,-4849.0,0.0002,2]
[357675248,1744308640630,-4849.0,0.0002,2]
[357675251,1744308640639,-4849.0,0.0002,2]
[357675254,1744308640649,-4849.0,0.0002,2]
[357675257,1744308640657,-4849.0,0.0002,2]
[357675260,1744308640666,-4849.0,0.0002,2]
[357675262,1744308640675,-4849.0,0.0002,2]
[357675265,1744308640685,-4849.0,0.0002,2]
[357675268,1744308640694,-4849.0,0.0002,2]
[357675270,1744308640704,-4849.0,0.0002,2]
[357675273,1744308640713,-4849.0,0.0002,2]
[357675276,1744308640722,-4849.0,0.0002,2]
[357675279,1744308640731,-4849.0,0.0002,2]
[357675282,1744308640740,-4849.0,0.0002,2]
[357675285,1744308640750,-4849.0,0.0002,2]
[357675288,1744308640759,-4849.0,0.0002,2]
[357675291,1744308640769,-4849.0,0.0002,2]
[357675295,1744308640780,-4849.0,0.0002,2]
[357675298,1744308640790,-4852.14838358,0.0002,2]
[357675301,1744308640799,-3248.0,0.0002,2]
[357675304,1744308640807,-3248.0,0.0002,2]
[357675307,1744308640816,-3248.0,0.0002,2]
[357675309,1744308640826,-3248.0,0.0002,2]
[357675312,1744308640835,-3248.0,0.0002,2]
[357675315,1744308640844,-3248.0,0.0002,2]
[357675318,1744308640853,-3248.0,0.0002,2]
[357675320,1744308640863,-3248.0,0.0002,2]
[357675323,1744308640872,-3248.0,0.0002,2]
[357675326,1744308640881,-3248.0,0.0002,2]
[357675329,1744308640890,-3248.0,0.0002,2]
[357675332,1744308640899,-3248.0,0.0002,2]
[357675335,1744308640908,-3248.0,0.0002,2]
[357675338,1744308640918,-3248.0,0.0002,2]
[357675341,1744308640928,-3248.0,0.0002,2]
[357675344,1744308640938,-3248.0,0.0002,2]
[357675347,1744308640947,-3248.0,0.0002,2]
[357675350,1744308640956,-3248.0,0.0002,2]
[357675353,1744308640968,-3248.0,0.0002,2]
[357675356,1744308640977,-3261.7371318,0.0002,2]
[357675359,1744308640990,-500.0,0.0002,2]
[357675362,1744308640999,-500.0,0.0002,2]
[357675365,1744308641009,-500.0,0.0002,2]
[357675368,1744308641018,-500.0,0.0002,2]
[357675371,1744308641029,-500.0,0.0002,2]
[357675374,1744308641039,-500.0,0.0002,2]
[357675376,1744308641048,-500.0,0.0002,2]
[357675379,1744308641058,-500.0,0.0002,2]
[357675382,1744308641070,-500.0,0.0002,2]
[357675385,1744308641079,-500.0,0.0002,2]
[357675388,1744308641089,-500.0,0.0002,2]
[357675390,1744308641098,-500.0,0.0002,2]
[357675391,1744308641107,-500.0,0.0002,2]
[357675392,1744308641117,-500.0,0.0002,2]
[357675393,1744308641126,-500.0,0.0002,2]
[357675394,1744308641135,-500.0,0.0002,2]
[357675395,1744308641144,-500.0,0.0002,2]
[357675396,1744308641153,-500.0,0.0002,2]
[357675397,1744308641162,-965.69849171,0.0002,2]
[357675398,1744308641171,-299.7615717,0.0002,2]
[357675399,1744308641180,-500.0,0.0002,2]
[357675400,1744308641189,-500.0,0.0002,2]
[357675401,1744308641199,-500.0,0.0002,2]
[357675402,1744308641208,-779.34031981,0.0002,2]
[357675403,1744308641218,-150.0,0.0002,2]
[357675405,1744308641227,-500.0,0.0002,2]
[357675407,1744308641236,-500.0,0.0002,2]
[357675409,1744308641245,-500.0,0.0002,2]
[357675410,1744308641255,-500.0,0.0002,2]
[357675412,1744308641264,-500.0,0.0002,2]
[357675414,1744308641274,-500.0,0.0002,2]
[357675416,1744308641283,-500.0,0.0002,2]
[357675418,1744308641292,-500.0,0.0002,2]
[357675420,1744308641302,-500.0,0.0002,2]
[357675422,1744308641311,-500.0,0.0002,2]
[357675424,1744308641321,-995.59680159,0.0002,2]
[357675426,1744308641330,-150.0,0.0002,2]
[357675428,1744308641340,-170.00537565,0.0002,2]
[357675430,1744308641349,-150.0,0.0002,2]
[357675432,1744308641359,-2000.0,0.0002,4]
[357675434,1744308641368,-500.0,0.0002,2]
[357675436,1744308641377,-500.0,0.0002,2]
[357675438,1744308641386,-500.0,0.0002,2]
[357675440,1744308641396,-500.0,0.0002,2]
[357675442,1744308641405,-500.0,0.0002,2]
[357675444,1744308641414,-500.0,0.0002,2]
[357675446,1744308641424,-539.77171762,0.0002,2]
[357675448,1744308641433,-150.0,0.0002,2]
[357675450,1744308641442,-150.0,0.0002,2]
[357675452,1744308641452,-150.0,0.0002,2]
[357675471,1744308641461,-150.0,0.0002,2]
[357675473,1744308641635,-150.0,0.0002,2]
[357675475,1744308641645,-150.05783665,0.0002,2]
[357675477,1744308641654,-689.0,0.0002,2]
[357675479,1744308641663,-689.0,0.0002,2]
[357675481,1744308641673,-689.0,0.0002,2]
[357675483,1744308641682,-689.0,0.0002,2]
[357675485,1744308641691,-689.0,0.0002,2]
[357675487,1744308641700,-689.0,0.0002,2]
[357675489,1744308641709,-689.0,0.0002,2]
[357675491,1744308641718,-689.0,0.0002,2]
[357675492,1744308641728,-689.0,0.0002,2]
[357675495,1744308641738,-689.0,0.0002,2]
[357675496,1744308641747,-689.0,0.0002,2]
[357675498,1744308641757,-151.64,0.0002,2]
[357675500,1744308641767,-151.64,0.0002,2]
[357675502,1744308641776,-689.0,0.0002,2]
[357675504,1744308641785,-151.64,0.0002,2]
[357675506,1744308641795,-151.64,0.0002,2]
[357675508,1744308641805,-689.0,0.0002,2]
[357675510,1744308641815,-151.64,0.0002,2]
[357675512,1744308641824,-151.64,0.0002,2]
[357675514,1744308641834,-151.64,0.0002,2]
[357675516,1744308641843,-151.64,0.0002,2]
[357675518,1744308641853,-689.0,0.0002,2]
[357675520,1744308641862,-151.64,0.0002,2]
[357675522,1744308641871,-151.64,0.0002,2]
[357675524,1744308641881,-689.0,0.0002,2]
[357675526,1744308641890,-151.64,0.0002,2]
[357675528,1744308641900,-689.0,0.0002,2]
[357675530,1744308641909,-151.64,0.0002,2]
[357675532,1744308641919,-689.0,0.0002,2]
[357675534,1744308641928,-689.0,0.0002,2]
[357675536,1744308641937,-689.0,0.0002,2]
[357675538,1744308641947,-693.61011133,0.0002,2]
[357675539,1744308641956,-500.0,0.0002,2]
[357675541,1744308641966,-500.0,0.0002,2]
[357675543,1744308641975,-500.0,0.0002,2]
[357675545,1744308641988,-500.0,0.0002,2]
[357675547,1744308642000,-500.0,0.0002,2]
[357675549,1744308642010,-500.0,0.0002,2]
[357675551,1744308642019,-917.64609504,0.0002,2]
[357675553,1744308642030,-500.0,0.0002,2]
[357675555,1744308642040,-644.07613857,0.0002,2]
[357675557,1744308642049,-275.12565608,0.0002,2]
[357675559,1744308642059,-500.0,0.0002,2]
[357675561,1744308642070,-500.0,0.0002,2]
[357675563,1744308642080,-614.0366244,0.0002,2]
[357675565,1744308642090,-3602.68,0.00020056,2]
[357675567,1744308642099,-282.56,0.00020145,2]
[357675569,1744308642108,-499.99,0.00020145,2]
[357675571,1744308642120,-3444.35,0.00020145,2]
[357675573,1744308642130,-999.99,0.00020167,2]
[357675575,1744308642138,-150.99,0.00020167,2]
[357675577,1744308642148,-5558.0,0.000203,3]
[357675579,1744308642158,-5558.0,0.000207,5]
[357675581,1744308642168,-579.93391871,0.00020728,2]
[357675583,1744308642177,-300.0,0.00021,2]
[357675585,1744308642187,-200.0,0.00021147,2]
[357675587,1744308642196,-252.81,0.00021238,2]
[357675589,1744308642206,-1087.43,0.00021291,2]
[357675591,1744308642219,-1143.05,0.00021316,2]
[357675593,1744308642228,-207.4,0.00021357,2]
[357675595,1744308642238,-250.0,0.0002138,2]
[357675596,1744308642247,-177.78,0.00021414,2]
[357675598,1744308642256,-250.0,0.00021452,2]
[357675600,1744308642265,-151.38,0.00021523,3]
[357675602,1744308642275,-150.0,0.00021536,2]
[357675604,1744308642284,-250.0,0.0002156,2]
[357675607,1744308642293,-564.2,0.00021575,2]
[357675609,1744308642302,-579.93391871,0.00021584,2]
[357675611,1744308642312,-157.12,0.00021608,2]
[357675613,1744308642321,-1634.57,0.00021662,2]
[357675615,1744308642331,-244.36913921,0.00021726,2]
[357675617,1744308642341,-175.98,0.00021889,2]
[357675619,1744308642351,-249.85,0.00021917,2]
[357675621,1744308642360,-1000.0,0.00022155,2]
[357675623,1744308642369,-500.0,0.00022356,2]
[357675625,1744308642379,-579.93391871,0.00022439,2]
[357675627,1744308642388,-215.0738,0.00022726,2]
[357675629,1744308642398,-350.0,0.00023,2]
[357675632,1744308642407,-203.16,0.00023092,2]
[357675634,1744308642416,-2500.0,0.00023269,2]
[357675636,1744308642426,-2500.0,0.00023269,2]
[357675638,1744308642435,-249.85,0.00023287,2]
[357675640,1744308642444,-579.93391871,0.00023294,2]
[357675642,1744308642454,-2000.0,0.00023333,4]
[357675645,1744308642465,-244.36913921,0.00023553,2]
[357675647,1744308642474,-174.94,0.00023836,2]
[357675649,1744308642485,-151.64,0.00023916,2]
[357675651,1744308642494,-1634.57,0.00023926,2]
[357675653,1744308642503,-223.0315306,0.00024095,2]
[357675655,1744308642512,-579.93391871,0.0002415,2]